bitfinex/quotes_BTCUSD_20230901
["timestamp","ask_amount","ask_price","bid_price","bid_amount"]
[1693598885717,1.49149249,25591.0,25590.0,0.031]
[1693598885923,1.51665249,25591.0,25590.0,0.031]
[1693598886102,1.51641249,25591.0,25590.0,0.031]
[1693598886299,1.51917249,25591.0,25590.0,0.031]
[1693598886560,1.44069249,25591.0,25590.0,0.03]
[1693598886714,1.43175249,25591.0,25590.0,0.031]
[1693598886915,1.43127249,25591.0,25590.0,0.031]
[1693598887174,2.19231549,25591.0,25590.0,0.031]
[1693598887383,2.80725849,25591.0,25590.0,0.03]
[1693598887583,2.84249849,25591.0,25590.0,0.03]
[1693598887735,2.84285849,25591.0,25590.0,0.03]
[1693598887914,2.84261849,25591.0,25590.0,0.03]
[1693598888117,2.84465849,25591.0,25590.0,0.03]
[1693598888324,2.84465849,25591.0,25587.0,0.019695]
[1693598888325,0.26318351,25583.0,25582.0,0.019695]
[1693598888527,3.396883,25583.0,25582.0,9.5e-05]
[1693598888724,3.369883,25583.0,25582.0,9.5e-05]
[1693598888930,0.10318351,25576.0,25574.0,0.23644016]
[1693598889189,0.17083471,25575.0,25574.0,0.04891556]
[1693598889357,0.17083471,25575.0,25574.0,0.41374174]
[1693598889504,0.17083471,25575.0,25574.0,0.1221]
[1693598889708,0.04106221,25575.0,25574.0,0.1221]
[1693598890137,0.016,25575.0,25574.0,0.1221]
[1693598890483,0.016,25575.0,25574.0,0.17939653]
[1693598890713,0.02,25575.0,25574.0,0.17939653]
[1693598891094,0.04506221,25575.0,25574.0,0.17939653]
[1693598891453,0.02906221,25575.0,25574.0,0.17939653]
[1693598891851,0.04506221,25575.0,25574.0,0.17939653]
[1693598892174,0.27254223,25575.0,25574.0,0.1232185]
[1693598892383,0.27254223,25575.0,25574.0,0.0011185]
[1693598892564,0.04906221,25575.0,25574.0,0.1232185]
[1693598893431,0.04906221,25575.0,25574.0,0.16860675]
[1693598894169,0.03306221,25575.0,25574.0,0.51030528]
[1693598894373,0.016,25583.0,25577.0,0.03281649]
[1693598894553,0.016,25582.0,25579.0,0.03281649]
[1693598894756,0.21969237,25582.0,25581.0,0.1221]
[1693598894956,0.21969237,25582.0,25581.0,0.27300142]
[1693598895104,0.21969237,25582.0,25581.0,0.1221]
[1693598895504,0.21969237,25582.0,25578.0,0.08530824]
[1693598895711,0.016,25580.0,25579.0,0.1591]
[1693598896069,0.016,25580.0,25579.0,0.1221]
[1693598897113,0.23612843,25580.0,25579.0,0.1221]
[1693598897322,0.23612843,25580.0,25578.0,0.037]
[1693598897500,0.23612843,25580.0,25577.0,0.1221]
[1693598897679,0.24012843,25580.0,25579.0,0.036]
[1693598898318,0.08636,25580.0,25579.0,0.036]
[1693598898495,0.016,25576.0,25575.0,0.1221]
[1693598898671,0.17083471,25576.0,25575.0,0.1221]
[1693598898879,0.016,25576.0,25575.0,0.1221]
[1693598899814,0.02,25576.0,25575.0,0.1581]
[1693598900225,0.016,25576.0,25575.0,0.1221]
[1693598900431,0.016,25576.0,25575.0,0.15347508]
[1693598900609,0.02,25576.0,25575.0,0.18947508]
[1693598900954,0.23935139,25576.0,25575.0,0.18947508]
[1693598901187,0.24335139,25576.0,25575.0,0.22547508]
[1693598901340,0.26677565,25576.0,25575.0,0.22547508]
[1693598901541,0.26277565,25576.0,25575.0,0.18947508]
[1693598901738,0.04742426,25576.0,25575.0,0.22547508]
[1693598901943,0.04742426,25576.0,25575.0,0.28590808]
[1693598904744,0.04742426,25576.0,25575.0,0.22547508]
[1693598905351,0.04242426,25576.0,25575.0,0.22547508]
[1693598906700,0.04242426,25576.0,25575.0,0.26897992]
[1693598908917,0.04242426,25576.0,25575.0,0.6560667]
[1693598909137,0.02,25576.0,25575.0,0.6760667]
[1693598911374,0.02,25576.0,25575.0,0.6760667]
[1693598912175,0.004,25576.0,25575.0,0.6760667]
[1693598912345,0.02,25576.0,25575.0,0.6760667]
[1693598913251,0.02,25576.0,25575.0,0.67658376]
[1693598916926,0.004,25576.0,25575.0,0.67658376]
[1693598917083,0.02,25576.0,25575.0,0.67658376]
[1693598921119,0.06318351,25582.0,25577.0,0.05681649]
[1693598921299,0.06318351,25584.0,25578.0,0.5619882]
[1693598921485,0.06318351,25584.0,25580.0,0.024]
[1693598921712,0.06318351,25584.0,25581.0,0.5579882]
[1693598921713,0.04718351,25584.0,25581.0,0.5579882]
[1693598921947,0.2051,25588.0,25581.0,0.65133618]
[1693598921948,0.06318351,25587.0,25581.0,0.65133618]
[1693598922086,0.06318351,25585.0,25581.0,0.5579882]
[1693598922313,0.06318351,25587.0,25584.0,0.1221]
[1693598922489,0.21838351,25587.0,25586.0,0.1221]
[1693598922887,0.24568588,25587.0,25586.0,0.1221]
[1693598924055,0.24768588,25587.0,25586.0,0.1491]
[1693598924695,0.18450237,25587.0,25586.0,0.58254727]
[1693598924877,0.14950237,25587.0,25586.0,0.58254727]
[1693598925101,0.1222,25587.0,25586.0,0.58254727]
[1693598925508,0.1242,25587.0,25586.0,0.60354727]
[1693598925921,0.004,25587.0,25586.0,0.57718678]
[1693598926143,0.06318351,25591.0,25586.0,0.57718678]
[1693598926346,0.04,25592.0,25587.0,0.5579882]
[1693598926347,0.04718351,25592.0,25587.0,0.5579882]
[1693598926549,0.08318351,25592.0,25591.0,0.1221]
[1693598926761,0.10318351,25592.0,25591.0,0.1221]
[1693598927183,0.06318351,25592.0,25591.0,0.1221]
[1693598927597,0.08318351,25592.0,25591.0,0.1221]
[1693598927964,0.04818351,25592.0,25591.0,0.50918678]
[1693598928167,0.04818351,25592.0,25591.0,0.52918678]
[1693598928515,0.06418351,25592.0,25591.0,0.52918678]
[1693598928664,0.08018351,25592.0,25591.0,0.53218678]
[1693598929152,0.06318351,25592.0,25591.0,0.52918678]
[1693598929354,0.07918351,25592.0,25591.0,0.53018678]
[1693598929523,0.10118351,25592.0,25591.0,0.53318678]
[1693598929697,0.07918351,25592.0,25591.0,0.53018678]
[1693598930123,0.09318351,25592.0,25591.0,0.53118678]
[1693598930326,0.03,25592.0,25591.0,0.53169127]
[1693598930526,0.07718351,25592.0,25591.0,0.53169127]
[1693598931051,0.06118351,25592.0,25591.0,0.53069127]
[1693598931257,0.03,25592.0,25591.0,0.53169127]
[1693598931460,0.09318351,25592.0,25591.0,0.53169127]
[1693598931817,0.31106491,25592.0,25591.0,0.53169127]
[1693598938252,0.2478814,25592.0,25591.0,0.53169127]
[1693598938492,0.31106491,25592.0,25591.0,0.56297093]
[1693598939023,0.09318351,25592.0,25591.0,0.56297093]
[1693598940110,0.05718351,25592.0,25591.0,0.56297093]
[1693598940316,0.09318351,25592.0,25591.0,0.56297093]
[1693598940943,0.12065438,25592.0,25591.0,0.56297093]
[1693598945273,0.12065438,25592.0,25591.0,0.55797093]
[1693598947081,0.05747087,25592.0,25591.0,0.55797093]
[1693598947325,0.05747087,25592.0,25591.0,0.60942195]
[1693598947473,0.05747087,25592.0,25591.0,0.93342195]
[1693598948579,0.26447565,25592.0,25591.0,0.88197093]
[1693598950631,0.05747087,25592.0,25591.0,0.88197093]
[1693598950805,0.05747087,25592.0,25591.0,0.92485495]
[1693598951204,0.05747087,25592.0,25591.0,0.62485495]
[1693598952643,0.05747087,25592.0,25591.0,0.60085495]
[1693598952778,0.05747087,25592.0,25591.0,0.62485495]
[1693598954001,0.05747087,25592.0,25591.0,0.62085495]
[1693598954878,0.05747087,25592.0,25591.0,0.57797093]
[1693598958693,0.05747087,25592.0,25591.0,0.62300721]
[1693598965201,0.00427587,25592.0,25591.0,0.61696014]
[1693598965445,0.04718351,25594.0,25591.0,0.59696014]
[1693598965642,0.04718351,25594.0,25593.0,0.1221]
[1693598965838,0.04718351,25594.0,25593.0,0.50918678]
[1693598966039,0.04718351,25594.0,25593.0,0.52918678]
[1693598967086,0.04718351,25594.0,25593.0,0.54818678]
[1693598967285,0.036,25595.0,25593.0,0.54818678]
[1693598967286,0.08318351,25595.0,25593.0,0.59683679]
[1693598967517,0.08318351,25595.0,25594.0,0.52918678]
[1693598969867,0.08318351,25595.0,25594.0,0.53518678]
[1693598970455,0.08318351,25595.0,25594.0,0.57809109]
[1693598972002,0.06718351,25595.0,25594.0,0.57809109]
[1693598972203,0.08318351,25595.0,25594.0,0.57859285]
[1693598972567,0.08318351,25595.0,25594.0,0.59159285]
[1693598972772,0.11338351,25595.0,25594.0,0.59159285]
[1693598973638,0.0302,25595.0,25594.0,0.59159285]
[1693598974139,0.0302,25595.0,25594.0,0.89159285]
[1693598977613,0.06718351,25596.0,25594.0,0.89159285]
[1693598977808,0.06718351,25596.0,25595.0,0.1221]
[1693598978042,0.06718351,25596.0,25595.0,0.52918678]
[1693598978246,0.06718351,25596.0,25595.0,0.52968763]
[1693598979142,0.06718351,25596.0,25595.0,0.53068763]
[1693598981475,0.06718351,25596.0,25595.0,0.58406197]
[1693598981866,0.09360851,25596.0,25595.0,0.58406197]
[1693598994282,0.09317925,25600.0,25595.0,0.53068763]
[1693598994283,0.06718351,25599.0,25595.0,0.53068763]
[1693598994484,0.04718351,25598.0,25596.0,0.5579882]
[1693598994696,0.04718351,25598.0,25597.0,0.1221]
[1693598994906,0.04718351,25598.0,25597.0,0.52918678]
[1693598995422,0.04718351,25598.0,25597.0,0.52968581]
[1693598995829,0.02718351,25598.0,25597.0,0.56668581]
[1693598996044,0.04718351,25599.0,25597.0,0.62276153]
[1693598996242,0.04718351,25599.0,25598.0,0.52918678]
[1693598996863,0.04718351,25600.0,25598.0,0.52918678]
[1693598997108,0.0395,25601.0,25598.0,0.52918678]
[1693598997109,0.06668351,25601.0,25599.0,0.1221]
[1693598997286,0.06718351,25600.0,25599.0,0.38708678]
[1693598997489,0.06718351,25600.0,25599.0,0.50918678]
[1693598997987,0.08318351,25600.0,25599.0,0.50918678]
[1693598998541,0.08318351,25600.0,25599.0,0.55511845]
[1693598999154,0.08318351,25600.0,25599.0,0.55561466]
[1693598999527,0.08318351,25600.0,25599.0,0.56861466]
[1693598999919,0.08318351,25600.0,25599.0,0.57461466]
[1693599001118,0.06668351,25601.0,25599.0,0.57461466]
[1693599001321,0.06668351,25601.0,25600.0,0.50918678]
[1693599001543,0.10268351,25601.0,25600.0,0.52918678]
[1693599002294,0.0195,25602.0,25601.0,0.024]
[1693599002295,0.003916,25602.0,25601.0,0.024]
[1693599002498,1.05228351,25606.0,25602.0,0.024]
[1693599002702,1.05228351,25606.0,25605.0,0.1221]
[1693599002896,1.05228351,25606.0,25605.0,0.50918678]
[1693599003122,1.05228351,25606.0,25605.0,0.52918678]
[1693599003361,1.05228351,25606.0,25605.0,0.52967754]
[1693599003759,1.05228351,25606.0,25605.0,0.58121725]
[1693599004607,1.05228351,25606.0,25605.0,0.60021725]
[1693599004812,1.05228351,25606.0,25605.0,0.61121725]
[1693599005010,0.06254951,25606.0,25605.0,0.59221725]
[1693599005219,0.06254951,25606.0,25605.0,0.61321725]
[1693599005412,0.06254951,25606.0,25605.0,0.65021725]
[1693599005862,0.06254951,25606.0,25605.0,0.59867754]
[1693599014159,0.06254951,25606.0,25605.0,0.63051816]
[1693599014357,0.06254951,25606.0,25605.0,0.68247302]
[1693599014563,0.06254951,25606.0,25605.0,0.63051816]
[1693599014564,0.014541,25606.0,25605.0,0.63051816]
[1693599014833,0.014541,25606.0,25605.0,0.68121296]
[1693599015625,0.06172451,25606.0,25605.0,0.68121296]
[1693599021673,0.06172451,25606.0,25605.0,0.61051816]
[1693599021877,0.06172451,25606.0,25605.0,0.22343138]
[1693599021878,0.24539942,25606.0,25605.0,0.22343138]
[1693599027152,0.24539942,25606.0,25605.0,0.10133138]
[1693599028522,0.09772451,25606.0,25605.0,0.06949076]
[1693599028721,0.29602451,25606.0,25605.0,0.06949076]
[1693599028862,0.54522957,25606.0,25605.0,0.06949076]
[1693599029066,0.0195,25618.0,25611.0,0.04]
[1693599029277,0.0195,25621.0,25618.0,0.04]
[1693599029480,0.0195,25622.0,25621.0,0.04]
[1693599029481,0.0015628,25622.0,25621.0,0.04]
[1693599029702,0.00024392,25627.0,25621.0,0.5779882]
[1693599029703,0.0015628,25626.0,25621.0,0.5779882]
[1693599030032,0.0015628,25626.0,25622.0,0.44089982]
[1693599030033,0.1611628,25626.0,25622.0,0.44089982]
[1693599030195,0.1611628,25626.0,25623.0,0.02]
[1693599030357,0.1611628,25626.0,25625.0,0.1221]
[1693599030561,0.1611628,25626.0,25625.0,0.1421]
[1693599030765,0.0015628,25626.0,25625.0,0.71504361]
[1693599030976,0.0015628,25626.0,25625.0,1.10213039]
[1693599031191,0.0015628,25626.0,25625.0,0.9616991]
[1693599031392,0.0015628,25626.0,25625.0,0.82965531]
[1693599031594,0.00024392,25627.0,25626.0,0.0031256]
[1693599031791,0.00024392,25627.0,25626.0,0.83231238]
[1693599032410,0.00024392,25627.0,25626.0,0.88438618]
[1693599033062,0.028807,25627.0,25626.0,0.88438618]
[1693599033236,0.028807,25627.0,25626.0,0.88485768]
[1693599033627,0.028807,25627.0,25626.0,0.86978388]
[1693599033807,0.00024392,25627.0,25626.0,0.86978388]
[1693599034414,0.02902769,25627.0,25626.0,0.86978388]
[1693599035988,0.02902769,25627.0,25626.0,0.86958388]
[1693599039928,0.02902769,25627.0,25626.0,0.92793687]
[1693599039929,0.00024392,25627.0,25626.0,0.92793687]
[1693599040147,0.00024392,25627.0,25626.0,0.86958388]
[1693599040361,0.00024392,25627.0,25626.0,0.9281239]
[1693599040568,0.00024392,25627.0,25626.0,0.0405971]
[1693599040569,0.39283279,25627.0,25626.0,0.0405971]
[1693599040712,0.23799808,25627.0,25626.0,0.0405971]
[1693599040920,0.26672921,25627.0,25626.0,0.0405971]
[1693599041556,0.26672921,25627.0,25626.0,0.0031256]
[1693599041731,0.26672921,25627.0,25626.0,0.0361256]
[1693599042134,0.26672921,25627.0,25626.0,0.0031256]
[1693599042339,0.26672921,25627.0,25626.0,0.00353643]
[1693599042571,0.26672921,25627.0,25626.0,0.01053643]
[1693599042796,0.04897505,25627.0,25626.0,0.13243643]
[1693599042983,0.22562854,25627.0,25626.0,0.13243643]
[1693599046469,0.22562854,25627.0,25626.0,0.12931083]
[1693599048753,0.04897505,25627.0,25626.0,0.12931083]
[1693599048910,0.29691563,25627.0,25626.0,0.00741083]
[1693599049127,0.04897505,25627.0,25626.0,0.00741083]
[1693599049293,0.25172393,25627.0,25626.0,0.00741083]
[1693599057990,0.23172393,25627.0,25626.0,0.00741083]
[1693599058192,0.02897505,25627.0,25626.0,1.03553499]
[1693599058463,0.02897505,25627.0,25626.0,0.88463357]
[1693599058925,0.00024392,25627.0,25626.0,0.88463357]
[1693599059250,0.03193043,25627.0,25626.0,0.88463357]
[1693599060534,0.03193043,25627.0,25626.0,0.14931083]
[1693599060740,0.2197037,25627.0,25626.0,0.12931083]
[1693599061677,0.03193043,25627.0,25626.0,0.12931083]
[1693599061883,0.03193043,25627.0,25626.0,0.57231608]
[1693599062165,0.03193043,25627.0,25626.0,0.59231608]
[1693599062558,0.03193043,25627.0,25626.0,0.53639761]
[1693599062791,0.23091711,25627.0,25626.0,0.53639761]
[1693599063382,0.46516506,25627.0,25626.0,0.53639761]
[1693599063994,0.4760751,25627.0,25626.0,0.00741083]
[1693599065050,0.4760751,25627.0,25626.0,0.12931083]
[1693599065903,0.26617838,25627.0,25626.0,0.12931083]
[1693599066047,0.26617838,25627.0,25626.0,0.59538811]
[1693599067700,0.44297685,25627.0,25626.0,0.53639761]
[1693599067907,0.44297685,25627.0,25626.0,0.12931083]
[1693599070774,0.26617838,25627.0,25626.0,0.51639761]
[1693599071003,0.26617838,25627.0,25626.0,0.58138136]
[1693599074404,0.26617838,25627.0,25626.0,1.36988429]
[1693599074612,0.26617838,25627.0,25626.0,1.32490054]
[1693599074613,0.23449187,25627.0,25626.0,1.32490054]
[1693599074811,0.23449187,25627.0,25626.0,1.18453317]
[1693599075027,0.44534834,25627.0,25626.0,0.77744639]
[1693599075276,0.44534834,25627.0,25626.0,0.82432001]
[1693599076832,0.44534834,25627.0,25626.0,1.01159266]
[1693599077851,0.26327853,25627.0,25626.0,1.01159266]
[1693599080685,0.26327853,25627.0,25626.0,0.82432001]
[1693599081478,0.26327853,25627.0,25626.0,0.82475851]
[1693599083658,0.26327853,25627.0,25626.0,0.83575851]
[1693599084287,0.26327853,25627.0,25626.0,1.02300513]
[1693599084967,0.26327853,25627.0,25626.0,0.78893258]
[1693599085142,0.45061246,25627.0,25626.0,0.78893258]
[1693599085472,0.21636451,25627.0,25626.0,0.74212268]
[1693599086509,0.21636451,25627.0,25626.0,0.23393489]
[1693599087347,0.21636451,25627.0,25626.0,0.14031083]
[1693599088888,0.02903058,25627.0,25626.0,0.14031083]
[1693599089639,0.22777928,25627.0,25626.0,0.01841083]
[1693599106172,0.02,25626.0,25624.0,0.03152509]
[1693599106386,0.02,25626.0,25621.0,0.26540725]
[1693599106387,0.17483471,25626.0,25621.0,0.26540725]
[1693599106607,0.23205471,25625.0,25622.0,0.3]
[1693599106810,0.41386336,25625.0,25622.0,0.3]
[1693599107070,0.25944865,25625.0,25622.0,0.3]
[1693599107272,0.25752865,25625.0,25622.0,0.3]
[1693599107448,0.25638865,25625.0,25622.0,0.3]
[1693599107668,0.25650865,25625.0,25624.0,0.032]
[1693599107862,0.25714865,25625.0,25624.0,0.032]
[1693599108071,0.27978865,25625.0,25624.0,0.032]
[1693599108331,0.49482865,25625.0,25624.0,0.032]
[1693599108456,0.52532865,25625.0,25624.0,0.032]
[1693599108664,0.64273325,25625.0,25624.0,0.032]
[1693599108862,0.06,25624.0,25619.0,0.12432486]
[1693599109099,0.31893471,25623.0,25619.0,0.51141164]
[1693599109269,0.40995471,25623.0,25622.0,0.037]
[1693599109474,0.1841,25623.0,25622.0,0.037]
[1693599109692,0.275,25623.0,25619.0,0.41778758]
[1693599109896,0.02,25621.0,25619.0,0.41778758]
[1693599110250,0.02,25621.0,25619.0,0.42408678]
[1693599110456,0.06954,25622.0,25619.0,0.037]
[1693599110457,0.02,25620.0,25619.0,0.037]
[1693599110657,0.11618,25620.0,25617.0,0.12411076]
[1693599110860,0.20670676,25619.0,25617.0,0.0304867]
[1693599111033,0.20670676,25619.0,25617.0,0.12411076]
[1693599111260,0.20670676,25619.0,25617.0,0.09362406]
[1693599111469,0.20670676,25619.0,25617.0,0.21552406]
[1693599111715,0.02,25620.0,25618.0,0.1219]
[1693599111928,0.021,25620.0,25618.0,0.55344349]
[1693599112155,0.25668,25623.0,25619.0,0.1419]
[1693599112340,0.02,25621.0,25620.0,0.5379882]
[1693599112603,0.02,25621.0,25620.0,0.52898678]
[1693599113637,0.02,25621.0,25620.0,0.53498678]
[1693599114033,0.02,25621.0,25620.0,0.52898678]
[1693599114381,0.021,25621.0,25620.0,0.54798678]
[1693599114978,0.021,25621.0,25620.0,0.57098678]
[1693599114979,0.022,25621.0,25620.0,0.57098678]
[1693599115191,0.26043733,25621.0,25620.0,0.1639]
[1693599115482,0.24043733,25621.0,25620.0,0.042]
[1693599115686,0.26043733,25621.0,25620.0,0.042]
[1693599116130,0.24043733,25621.0,25620.0,0.042]
[1693599116285,0.26043733,25621.0,25620.0,0.042]
[1693599120868,0.29047492,25621.0,25620.0,0.042]
[1693599122077,0.05203759,25621.0,25620.0,0.042]
[1693599122380,0.23165992,25621.0,25620.0,0.042]
[1693599123964,0.21165992,25621.0,25620.0,0.042]
[1693599124193,0.23165992,25621.0,25620.0,0.042]
[1693599134699,0.05203759,25621.0,25620.0,0.042]
[1693599134897,0.12607759,25621.0,25620.0,0.042]
[1693599135099,0.12577759,25621.0,25620.0,0.042]
[1693599135311,0.12931759,25621.0,25620.0,0.042]
[1693599135513,0.13021759,25621.0,25620.0,0.042]
[1693599135726,0.13249759,25621.0,25620.0,0.042]
[1693599136028,0.12163759,25621.0,25620.0,0.042]
[1693599136180,0.12067759,25621.0,25620.0,0.042]
[1693599136391,0.12001759,25621.0,25620.0,0.042]
[1693599136587,0.11983759,25621.0,25620.0,0.042]
[1693599136787,0.35679653,25621.0,25620.0,0.042]
[1693599136990,0.35667653,25621.0,25620.0,0.042]
[1693599137193,0.11953759,25621.0,25620.0,0.042]
[1693599137368,0.11947759,25621.0,25620.0,0.042]
[1693599137573,0.11853759,25621.0,25620.0,0.023]
[1693599137821,0.11879759,25621.0,25616.0,0.2470699]
[1693599138042,0.1807,25620.0,25616.0,0.63415668]
[1693599138236,0.33553471,25620.0,25616.0,0.63415668]
[1693599138437,0.02995177,25619.0,25616.0,0.63415668]
[1693599139330,0.19562538,25618.0,25616.0,0.63415668]
[1693599140794,0.19562538,25618.0,25616.0,0.67115668]
[1693599140994,0.19562538,25618.0,25616.0,0.63415668]
[1693599141197,0.19562538,25618.0,25616.0,0.67115668]
[1693599141403,0.19662538,25618.0,25616.0,0.70815668]
[1693599141604,0.19662538,25618.0,25616.0,0.67115668]
[1693599141813,0.19762538,25618.0,25616.0,0.70815668]
[1693599142360,0.19199302,25617.0,25616.0,0.70815668]
[1693599142535,0.19199302,25617.0,25616.0,1.02815668]
[1693599142749,0.19199302,25617.0,25616.0,2.15330198]
[1693599143704,0.19199302,25617.0,25616.0,2.11630198]
[1693599143976,0.19299302,25617.0,25616.0,0.40554584]
[1693599144240,0.19299302,25617.0,25616.0,0.10554584]
[1693599144511,0.2429358,25617.0,25616.0,0.074]
[1693599144753,0.2429358,25617.0,25616.0,0.037]
[1693599145245,0.2439358,25617.0,25616.0,0.074]
[1693599154050,0.05194278,25617.0,25616.0,0.074]
[1693599154266,0.05194278,25617.0,25616.0,0.72095268]
[1693599154730,0.05194278,25617.0,25616.0,0.62732862]
[1693599156548,0.23307435,25617.0,25616.0,0.074]
[1693599157832,0.05194278,25617.0,25616.0,0.074]
[1693599160337,0.05194278,25617.0,25616.0,0.07439935]
[1693599173636,0.05194278,25617.0,25616.0,0.16802341]
[1693599173774,0.05194278,25617.0,25616.0,0.07439935]
[1693599173974,0.05194278,25617.0,25616.0,0.16802341]
[1693599174424,0.05194278,25617.0,25616.0,1.33430757]
[1693599174600,0.03194278,25617.0,25616.0,1.42082757]
[1693599174816,0.03194278,25617.0,25616.0,1.37401341]
[1693599174992,0.02727578,25617.0,25616.0,1.72083934]
[1693599175365,0.001,25617.0,25616.0,1.72083934]
[1693599188330,0.001,25617.0,25616.0,1.76358103]
[1693599188567,0.001,25617.0,25616.0,1.72083934]
[1693599191917,0.001,25617.0,25616.0,1.90794217]
[1693599192200,0.001,25617.0,25616.0,1.72083934]
[1693599192919,0.001,25617.0,25616.0,1.90793601]
[1693599193071,0.001,25617.0,25616.0,1.72083934]
[1693599195173,0.001,25617.0,25616.0,1.90792606]
[1693599195397,0.001,25617.0,25616.0,1.72083934]
[1693599196875,0.001,25617.0,25616.0,1.90792399]
[1693599197730,0.001,25617.0,25616.0,1.72083934]
[1693599198247,0.001,25617.0,25616.0,1.90792896]
[1693599198881,0.001,25617.0,25616.0,1.72083934]
[1693599200631,0.001,25617.0,25616.0,1.78140642]
[1693599200834,0.001,25617.0,25616.0,1.9079391]
[1693599201035,0.001,25617.0,25616.0,1.95173238]
[1693599202396,0.001,25617.0,25616.0,1.9079391]
[1693599202610,0.001,25617.0,25616.0,1.72083934]
[1693599202852,0.001,25617.0,25616.0,1.77805218]
[1693599203426,0.001,25617.0,25616.0,1.72083934]
[1693599206943,0.001,25617.0,25616.0,1.48676679]
[1693599207139,0.001,25617.0,25616.0,1.72067661]
[1693599208138,0.001,25617.0,25616.0,1.77015837]
[1693599209138,0.001,25617.0,25616.0,1.53624855]
[1693599216485,0.001,25617.0,25616.0,1.48676679]
[1693599216994,0.001,25617.0,25616.0,1.36486679]
[1693599218098,0.001,25617.0,25616.0,1.64575385]
[1693599218828,0.001,25617.0,25616.0,1.69096338]
[1693599219020,0.001,25617.0,25616.0,1.64575385]
[1693599219445,0.1519,25625.0,25619.0,0.06]
[1693599219446,0.1554,25622.0,25619.0,0.06]
[1693599219647,0.1554,25622.0,25621.0,0.1873239]
[1693599219855,0.1554,25622.0,25621.0,1.45779134]
[1693599219995,0.1554,25622.0,25621.0,1.47779134]
[1693599220199,0.1554,25622.0,25621.0,1.52364704]
[1693599220405,0.1554,25622.0,25621.0,1.52413293]
[1693599220626,0.18723616,25622.0,25621.0,1.6646504]
[1693599221866,0.18723616,25622.0,25621.0,1.4773265]
[1693599222072,0.18723616,25622.0,25621.0,1.6646287]
[1693599222259,0.18723616,25622.0,25621.0,1.52413293]
[1693599222464,0.18723616,25622.0,25621.0,1.66462874]
[1693599222625,0.19323616,25622.0,25621.0,1.66462874]
[1693599223574,0.19323616,25622.0,25621.0,1.52413293]
[1693599223983,0.19323616,25622.0,25621.0,1.66460356]
[1693599224336,0.19323616,25622.0,25621.0,1.52413293]
[1693599224538,0.19323616,25622.0,25621.0,1.53113293]
[1693599224745,0.19323616,25622.0,25621.0,1.52413293]
[1693599224937,0.18723616,25622.0,25621.0,1.53113293]
[1693599225139,0.18723616,25622.0,25621.0,1.53613293]
[1693599225346,0.18723616,25622.0,25621.0,1.49027723]
[1693599225741,0.18723616,25622.0,25621.0,1.53588846]
[1693599225982,0.18723616,25622.0,25621.0,1.54088846]
[1693599227107,0.18723616,25622.0,25621.0,1.68131942]
[1693599228465,0.18723616,25622.0,25621.0,1.49399552]
[1693599232020,0.18723616,25622.0,25621.0,1.52466639]
[1693599234491,0.18723616,25622.0,25621.0,2.64955558]
[1693599234709,0.03143616,25622.0,25621.0,2.64583729]
[1693599234919,0.00037497,25622.0,25621.0,2.75266826]
[1693599235202,0.02846123,25622.0,25621.0,2.51851339]
[1693599235554,1.00584392,25627.0,25624.0,0.1219]
[1693599235785,0.00024392,25627.0,25626.0,0.1219]
[1693599235991,1.0051,25632.0,25626.0,2.22492929]
[1693599236194,1.0251,25632.0,25627.0,0.93154415]
[1693599236403,1.0251,25632.0,25630.0,0.1219]
[1693599236572,0.0395,25632.0,25630.0,0.50898678]
[1693599236778,0.10634,25632.0,25628.0,0.1219]
[1693599236971,0.10706,25632.0,25629.0,0.38708678]
[1693599237196,0.0395,25632.0,25629.0,0.38708678]
[1693599238066,0.0395,25632.0,25630.0,0.1419]
[1693599238411,0.0395,25632.0,25631.0,0.38708678]
[1693599238561,0.0395,25632.0,25631.0,0.40708678]
[1693599240016,0.0395,25632.0,25631.0,0.41408678]
[1693599240500,0.0395,25632.0,25631.0,0.41456348]
[1693599240718,0.27152928,25632.0,25631.0,0.41456348]
[1693599241510,0.27152928,25632.0,25631.0,0.41856348]
[1693599242419,0.30003636,25632.0,25631.0,0.41856348]
[1693599243890,0.04800708,25632.0,25631.0,0.5694649]
[1693599244132,0.1648,25634.0,25631.0,0.5694649]
[1693599244133,0.1648,25634.0,25631.0,0.84046348]
[1693599244305,0.1648,25634.0,25633.0,0.1219]
[1693599244509,0.1648,25634.0,25633.0,0.50898678]
[1693599244714,0.1648,25634.0,25633.0,0.52898678]
[1693599244887,0.1648,25634.0,25633.0,0.40708678]
[1693599245320,0.1648,25634.0,25633.0,0.40756136]
[1693599245720,0.1648,25634.0,25633.0,0.52946136]
[1693599246449,0.1648,25634.0,25633.0,0.60754277]
[1693599247073,0.1658,25634.0,25633.0,0.60854277]
[1693599247478,0.1648,25634.0,25633.0,0.60754277]
[1693599247839,0.1648,25634.0,25633.0,0.62454277]
[1693599249128,0.45163524,25634.0,25633.0,0.03747458]
[1693599249351,0.45739524,25634.0,25633.0,0.03747458]
[1693599249559,0.45649524,25634.0,25633.0,0.03747458]
[1693599249768,0.45091524,25634.0,25633.0,0.03747458]
[1693599249956,0.37975524,25634.0,25633.0,0.03747458]
[1693599250203,0.1648,25634.0,25633.0,0.03747458]
[1693599251571,0.18983187,25634.0,25633.0,0.03747458]
[1693599256583,0.02503187,25634.0,25633.0,0.03747458]
[1693599261705,0.02503187,25634.0,25633.0,0.08665975]
[1693599262695,0.02503187,25634.0,25633.0,0.47374653]
[1693599262919,0.02503187,25634.0,25633.0,0.49374653]
[1693599263142,0.02503187,25634.0,25633.0,0.61554653]
[1693599263705,0.02,25636.0,25633.0,0.61554653]
[1693599263952,0.02493286,25634.0,25633.0,0.22845975]
[1693599264192,0.02,25636.0,25633.0,0.22845975]
[1693599264442,0.02,25636.0,25634.0,0.02]
[1693599265384,0.02,25636.0,25635.0,0.0004731]
[1693599266321,0.02,25636.0,25635.0,0.38755988]
[1693599266552,0.02,25636.0,25635.0,0.40755988]
[1693599266764,0.021,25636.0,25635.0,0.40755988]
[1693599267256,0.02,25636.0,25635.0,0.40755988]
[1693599267512,0.21136806,25636.0,25635.0,0.0174731]
[1693599268698,0.21136806,25636.0,25635.0,0.0374731]
[1693599269866,0.44846276,25636.0,25635.0,0.0374731]
[1693599270869,0.47339934,25636.0,25635.0,0.0374731]
[1693599271360,0.53481934,25636.0,25635.0,0.0374731]
[1693599271607,0.53493934,25636.0,25635.0,0.0374731]
[1693599271808,0.53403934,25636.0,25635.0,0.0374731]
[1693599272095,0.46839934,25636.0,25635.0,0.0374731]
[1693599272336,0.50137128,25636.0,25635.0,0.0374731]